fUST/lending_fUST_20240115
["ID","MTS","AMOUNT","RATE_DAILY","PERIOD"]
[311650525,1705281044838,-500.0,0.00027671,2]
[311650526,1705281044848,-500.0,0.00027671,2]
[311650527,1705281044858,-500.0,0.00027671,2]
[311650528,1705281044867,-500.0,0.00027671,2]
[311650529,1705281044876,-500.0,0.00027671,2]
[311650530,1705281044886,-500.0,0.00027671,2]
[311650531,1705281044895,-24408.73,0.00027671,2]
[311650532,1705281044904,-15055.16,0.00027671,2]
[311650533,1705281044913,-500.0,0.00027671,2]
[311650534,1705281044922,-500.0,0.00027671,2]
[311650535,1705281044932,-500.0,0.00027671,2]
[311650536,1705281044942,-500.0,0.00027671,2]
[311650537,1705281044951,-529.01792933,0.00027671,2]
[311650538,1705281044960,-500.0,0.00027671,2]
[311650539,1705281044970,-500.0,0.00027671,2]
[311650540,1705281044979,-500.0,0.00027671,2]
[311650541,1705281044988,-500.0,0.00027671,2]
[311650542,1705281044997,-500.0,0.00027671,2]
[311650543,1705281045007,-500.0,0.00027671,2]
[311650544,1705281045017,-500.0,0.00027671,2]
[311650545,1705281045026,-500.0,0.00027671,2]
[311650546,1705281045035,-500.0,0.00027671,2]
[311650547,1705281045045,-500.0,0.00027671,2]
[311650548,1705281045054,-1871.2,0.00027671,2]
[311650549,1705281045063,-500.0,0.00027671,2]
[311650550,1705281045072,-500.0,0.00027671,2]
[311650551,1705281045082,-500.0,0.00027671,2]
[311650552,1705281045092,-719.5,0.00027671,2]
[311650553,1705281045102,-500.0,0.00027671,2]
[311650554,1705281045111,-500.0,0.00027671,2]
[311650555,1705281045121,-256.16370604,0.00027671,2]
[311650556,1705281045130,-500.0,0.00027671,2]
[311650557,1705281045139,-500.0,0.00027671,2]
[311650558,1705281045149,-500.0,0.00027671,2]
[311650559,1705281045158,-6493.17,0.00027671,2]
[311650560,1705281045168,-218.24059673,0.00027671,2]
[311650561,1705281045177,-500.0,0.00027671,2]
[311650562,1705281045188,-500.0,0.00027671,2]
[311650563,1705281045197,-500.0,0.00027671,2]
[311650564,1705281045206,-153.0,0.00027671,2]
[311650565,1705281045215,-688.18928243,0.000277,2]
[311650566,1705281045224,-500.0,0.00027808,2]
[311650567,1705281045233,-655.22,0.00027943,2]
[311650568,1705281045243,-655.22,0.00027944,2]
[311650569,1705281045251,-655.22,0.00027944,2]
[311650570,1705281045261,-151.0,0.00027945,2]
[311650571,1705281045270,-2430.37307,0.00027945,2]
[311650572,1705281045279,-2430.37307,0.00027945,2]
[311650573,1705281045288,-151.0,0.00027945,2]
[311650574,1705281045298,-151.0,0.00027945,2]
[311650575,1705281045307,-317.89344166,0.00027945,2]
[311650576,1705281045317,-500.0,0.00027945,2]
[311650577,1705281045326,-732.09,0.00027945,2]
[311650578,1705281045335,-500.0,0.00027945,2]
[311650579,1705281045344,-500.0,0.00027945,2]
[311650580,1705281045353,-500.0,0.00027945,2]
[311650581,1705281045362,-500.0,0.00027945,2]
[311650582,1705281045371,-505.32,0.00027945,2]
[311650584,1705281045381,-500.0,0.00027945,2]
[311650586,1705281045390,-500.0,0.00027945,2]
[311650588,1705281045399,-462.43128384,0.00027945,2]
[311650590,1705281045409,-532.87,0.00027945,2]
[311650592,1705281045418,-273.15317203,0.00027945,2]
[311650594,1705281045427,-234.14884369,0.00027945,2]
[311650595,1705281045438,-500.0,0.00027945,2]
[311650597,1705281045447,-298.10498343,0.00027945,2]
[311650599,1705281045457,-500.0,0.00027945,2]
[311650600,1705281045466,-500.0,0.00027945,2]
[311650602,1705281045475,-500.0,0.00027945,2]
[311650603,1705281045484,-500.0,0.00027945,2]
[311650604,1705281045494,-500.0,0.00027945,2]
[311650605,1705281045503,-500.0,0.00027945,2]
[311650606,1705281045512,-500.0,0.00027945,2]
[311650607,1705281045521,-500.0,0.00027945,2]
[311650608,1705281045533,-500.0,0.00027945,2]
[311650609,1705281045541,-1158.57,0.00027945,2]
[311650610,1705281045550,-500.0,0.00027945,2]
[311650611,1705281045559,-2184.44,0.00027945,2]
[311650612,1705281045569,-597.80011119,0.00027945,2]
[311650613,1705281045578,-500.0,0.00027945,2]
[311650614,1705281045587,-500.0,0.00027945,2]
[311650615,1705281045596,-500.0,0.00027945,2]
[311650616,1705281045605,-1358.21,0.00027945,2]
[311650617,1705281045614,-500.0,0.00027945,2]
[311650618,1705281045624,-500.0,0.00027945,2]
[311650619,1705281045633,-500.0,0.00027945,2]
[311650620,1705281045643,-1606.58,0.00027945,2]
[311650621,1705281045651,-500.0,0.00027945,2]
[311650622,1705281045660,-626.85,0.00027945,2]
[311650623,1705281045668,-209.81495602,0.00027945,2]
[311650624,1705281045677,-500.0,0.00027945,2]
[311650625,1705281045688,-500.0,0.00027945,2]
[311650626,1705281045697,-172.71157866,0.00027945,2]
[311650627,1705281045706,-500.0,0.00027945,2]
[311650628,1705281045714,-972.6,0.00027945,2]
[311650629,1705281045724,-500.0,0.00027945,2]
[311650631,1705281045733,-500.0,0.00027945,2]
[311650633,1705281045742,-500.0,0.00027945,2]
[311650634,1705281045751,-500.0,0.00027945,2]
[311650635,1705281045760,-500.0,0.00027945,2]
[311650636,1705281045770,-807.89,0.00027945,2]
[311650637,1705281045778,-500.0,0.00027945,2]
[311650638,1705281045788,-500.0,0.00027945,2]
[311650639,1705281045797,-1139.15,0.00027945,2]
[311650640,1705281045806,-500.0,0.00027945,2]
[311650641,1705281045816,-500.0,0.00027945,2]
[311650642,1705281045825,-505.11,0.00027945,2]
[311650643,1705281045834,-500.0,0.00027945,2]
[311650644,1705281045843,-500.0,0.00027945,2]
[311650645,1705281045852,-681.17,0.00027945,2]
[311650646,1705281045861,-500.0,0.00027945,2]
[311650647,1705281045870,-500.0,0.00027945,2]
[311650648,1705281045879,-500.0,0.00027945,2]
[311650649,1705281045888,-500.0,0.00027945,2]
[311650650,1705281045897,-500.0,0.00027945,2]
[311650651,1705281045907,-500.0,0.00027945,2]
[311650652,1705281045916,-500.0,0.00027945,2]
[311650653,1705281045925,-500.0,0.00027945,2]
[311650654,1705281045935,-792.25,0.00027945,2]
[311650655,1705281045943,-500.0,0.00027945,2]
[311650656,1705281045955,-500.0,0.00027945,2]
[311650657,1705281045964,-500.0,0.00027945,2]
[311650658,1705281045973,-683.68,0.00027945,2]
[311650659,1705281045982,-500.0,0.00027945,2]
[311650660,1705281045992,-500.0,0.00027945,2]
[311650661,1705281046001,-500.0,0.00027945,2]
[311650662,1705281046011,-500.0,0.00027945,2]
[311650663,1705281046020,-500.0,0.00027945,2]
[311650665,1705281046029,-1205.42,0.00027945,2]
[311650667,1705281046108,-500.0,0.00027945,2]
[311650668,1705281046118,-500.0,0.00027945,2]
[311650669,1705281046127,-500.0,0.00027945,2]
[311650670,1705281046137,-500.0,0.00027945,2]
[311650671,1705281046146,-500.0,0.00027945,2]
[311650672,1705281046156,-500.0,0.00027945,2]
[311650673,1705281046166,-500.0,0.00027945,2]
[311650674,1705281046175,-500.0,0.00027945,2]
[311650675,1705281046185,-500.0,0.00027945,2]
[311650676,1705281046195,-500.0,0.00027945,2]
[311650677,1705281046204,-500.0,0.00027945,2]
[311650678,1705281046214,-500.0,0.00027945,2]
[311650679,1705281046223,-500.0,0.00027945,2]
[311650680,1705281046233,-500.0,0.00027945,2]
[311650681,1705281046242,-502.50157674,0.00027945,5]
[311650682,1705281046252,-500.0,0.00027945,2]
[311650684,1705281046261,-500.0,0.00027945,2]
[311650685,1705281046271,-500.0,0.00027945,2]
[311650687,1705281046280,-500.0,0.00027945,2]
[311650689,1705281046290,-500.0,0.00027945,2]
[311650690,1705281046299,-500.0,0.00027945,2]
[311650691,1705281046308,-500.0,0.00027945,2]
[311650692,1705281046318,-1006.92575505,0.00027945,2]
[311650693,1705281046327,-1267.62,0.00027945,2]
[311650694,1705281046336,-643.12,0.00027945,2]
[311650695,1705281046345,-2876.52,0.00027945,2]
[311650696,1705281046356,-2746.06,0.00027945,2]
[311650697,1705281046365,-500.0,0.00027945,2]
[311650698,1705281046375,-720.48,0.00027945,2]
[311650699,1705281046384,-500.0,0.00027945,2]
[311650700,1705281046394,-1305.35,0.00027945,2]
[311650701,1705281046403,-500.0,0.00027945,2]
[311650702,1705281046413,-998.27,0.00027945,2]
[311650703,1705281046423,-500.0,0.00027945,2]
[311650704,1705281046435,-500.0,0.00027945,2]
[311650705,1705281046446,-500.0,0.00027945,2]
[311650706,1705281046457,-500.0,0.00027945,2]
[311650707,1705281046467,-500.0,0.00027945,2]
[311650708,1705281046477,-288.23732687,0.00027945,2]
[311650709,1705281046489,-500.0,0.00027945,2]
[311650710,1705281046499,-500.0,0.00027945,2]
[311650711,1705281046510,-1274.74,0.00027945,2]
[311650712,1705281046520,-961.69,0.00027945,2]
[311650713,1705281046530,-320.31361279,0.00027945,2]
[311650714,1705281046541,-500.0,0.00027945,2]
[311650715,1705281046550,-1695.42,0.00027945,2]
[311650716,1705281046561,-226.23629998,0.00027945,2]
[311650717,1705281046571,-500.0,0.00027945,2]
[311650718,1705281046580,-1482.79,0.00027945,2]
[311650719,1705281046589,-500.0,0.00027945,2]
[311650720,1705281046600,-500.0,0.00027945,2]
[311650721,1705281046609,-500.0,0.00027945,2]
[311650722,1705281046620,-500.0,0.00027945,2]
[311650723,1705281046630,-6992.1,0.00027945,2]
[311650724,1705281046640,-500.0,0.00027945,2]
[311650725,1705281046650,-500.0,0.00027945,2]
[311650726,1705281046661,-500.0,0.00027945,2]
[311650727,1705281046672,-8044.07,0.00027945,2]
[311650728,1705281046681,-2794.15,0.00027945,2]
[311650729,1705281046694,-500.0,0.00027945,2]
[311650730,1705281046706,-500.0,0.00027945,2]
[311650731,1705281046717,-783.67,0.00027945,2]
[311650732,1705281046726,-500.0,0.00027945,2]
[311650733,1705281046736,-500.0,0.00027945,2]
[311650734,1705281046746,-4514.24,0.00027945,2]
[311650735,1705281046756,-868.05,0.00027945,2]
[311650736,1705281046766,-3852.53,0.00027945,2]
[311650737,1705281046776,-500.0,0.00027945,2]
[311650738,1705281046786,-500.0,0.00027945,2]
[311650739,1705281046797,-500.0,0.00027945,2]
[311650740,1705281046808,-500.0,0.00027945,2]
[311650741,1705281046818,-24408.73,0.00027945,2]
[311650742,1705281046829,-15055.16,0.00027945,2]
[311650743,1705281046840,-500.0,0.00027945,2]
[311650744,1705281046850,-500.0,0.00027945,2]
[311650745,1705281046860,-500.0,0.00027945,2]
[311650746,1705281046871,-500.0,0.00027945,2]
[311650747,1705281046881,-500.0,0.00027945,2]
[311650748,1705281046891,-500.0,0.00027945,2]
[311650749,1705281046900,-500.0,0.00027945,2]
[311650750,1705281046910,-500.0,0.00027945,2]
[311650751,1705281046921,-308.24075342,0.00027945,2]
[311650752,1705281046930,-500.0,0.00027945,2]
[311650753,1705281046940,-500.0,0.00027945,2]
[311650754,1705281046950,-500.0,0.00027945,2]
[311650755,1705281046959,-589.61761874,0.00027945,2]
[311650756,1705281046969,-1871.2,0.00027945,2]
[311650757,1705281046979,-500.0,0.00027945,2]
[311650758,1705281046989,-719.5,0.00027945,2]
[311650759,1705281046998,-500.0,0.00027945,2]
[311650760,1705281047008,-500.0,0.00027945,2]
[311650761,1705281047018,-500.0,0.00027945,2]
[311650762,1705281047027,-500.0,0.00027945,2]
[311650763,1705281047037,-6493.17,0.00027945,2]
[311650764,1705281047047,-500.0,0.00027945,2]
[311650765,1705281047057,-4109.29344934,0.00028,2]
[311650766,1705281047066,-2041.102221,0.00028,2]
[311650767,1705281047075,-326.84593778,0.00028217,2]
[311650768,1705281047084,-655.22,0.00028218,2]
[311650769,1705281047093,-655.22,0.00028218,2]
[311650770,1705281047102,-655.22,0.00028218,2]
[311650771,1705281047111,-151.0,0.00028219,2]
[311650772,1705281047120,-151.0,0.00028219,2]
[311650773,1705281047130,-2430.37307,0.00028219,2]
[311650774,1705281047140,-2430.37307,0.00028219,2]
[311650775,1705281047149,-151.0,0.00028219,2]
[311650776,1705281047159,-500.0,0.00028219,2]
[311650777,1705281047170,-732.09,0.00028219,2]
[311650778,1705281047179,-327.20580692,0.00028219,2]
[311650779,1705281047189,-505.32,0.00028219,2]
[311650780,1705281047198,-500.0,0.00028219,2]
[311650781,1705281047208,-532.87,0.00028219,2]
[311650782,1705281047218,-500.0,0.00028219,2]
[311650783,1705281047227,-503.70058373,0.00028219,2]
[311650784,1705281047238,-500.0,0.00028219,2]
[311650785,1705281047249,-500.0,0.00028219,2]
[311650786,1705281047259,-500.0,0.00028219,2]
[311650787,1705281047269,-500.0,0.00028219,2]
[311650788,1705281047278,-500.0,0.00028219,2]
[311650789,1705281047289,-1158.57,0.00028219,2]
[311650790,1705281047299,-2184.44,0.00028219,2]
[311650791,1705281047308,-500.0,0.00028219,2]
[311650792,1705281047318,-500.0,0.00028219,2]
[311650793,1705281047328,-1358.21,0.00028219,2]
[311650794,1705281047338,-500.0,0.00028219,2]
[311650795,1705281047349,-500.0,0.00028219,2]
[311650796,1705281047359,-1606.58,0.00028219,2]
[311650797,1705281047369,-500.0,0.00028219,2]
[311650798,1705281047380,-626.85,0.00028219,2]
[311650799,1705281047390,-500.0,0.00028219,2]
[311650800,1705281047400,-972.6,0.00028219,2]
[311650801,1705281047409,-500.0,0.00028219,2]
[311650802,1705281047419,-500.0,0.00028219,2]
[311650803,1705281047428,-500.0,0.00028219,2]
[311650804,1705281047439,-500.0,0.00028219,2]
[311650805,1705281047448,-807.89,0.00028219,2]
[311650806,1705281047458,-500.0,0.00028219,2]
[311650807,1705281047468,-1139.15,0.00028219,2]
[311650808,1705281047478,-500.0,0.00028219,2]
[311650809,1705281047487,-505.11,0.00028219,2]
[311650810,1705281047498,-500.0,0.00028219,2]
[311650811,1705281047509,-500.0,0.00028219,2]
[311650812,1705281047519,-681.17,0.00028219,2]
[311650813,1705281047530,-500.0,0.00028219,2]
[311650814,1705281047540,-500.0,0.00028219,2]
[311650815,1705281047549,-500.0,0.00028219,2]
[311650816,1705281047559,-792.25,0.00028219,2]
[311650817,1705281047568,-500.0,0.00028219,2]
[311650818,1705281047580,-500.0,0.00028219,2]
[311650819,1705281047590,-683.68,0.00028219,2]
[311650820,1705281047601,-503.8784956,0.00028219,2]
[311650821,1705281047611,-583.1174725,0.00028219,2]
[311650822,1705281047622,-500.0,0.00028219,2]
[311650823,1705281047633,-247.37652584,0.00028219,2]
[311650824,1705281047643,-1205.42,0.00028219,2]
[311650825,1705281047653,-500.0,0.00028219,2]
[311650826,1705281047663,-500.0,0.00028219,2]
[311650827,1705281047673,-500.0,0.00028219,2]
[311650828,1705281047748,-500.0,0.00028219,2]
[311650829,1705281047757,-500.0,0.00028219,2]
[311650830,1705281047766,-500.0,0.00028219,2]
[311650831,1705281047775,-500.0,0.00028219,2]
[311650832,1705281047784,-500.0,0.00028219,2]
[311650833,1705281047794,-500.0,0.00028219,2]
[311650834,1705281047802,-500.0,0.00028219,2]
[311650835,1705281047812,-500.0,0.00028219,2]
[311650836,1705281047821,-454.73107322,0.00028219,2]
[311650837,1705281047831,-500.0,0.00028219,2]
[311650838,1705281047840,-1267.62,0.00028219,2]
[311650839,1705281047849,-643.12,0.00028219,2]
[311650840,1705281047858,-2876.52,0.00028219,2]
[311650841,1705281047868,-2746.06,0.00028219,2]
[311650842,1705281047878,-720.48,0.00028219,2]
[311650843,1705281047887,-500.0,0.00028219,2]
[311650844,1705281047897,-1305.35,0.00028219,2]
[311650845,1705281047907,-998.27,0.00028219,2]
[311650846,1705281047916,-500.0,0.00028219,2]
[311650847,1705281047925,-500.0,0.00028219,2]
[311650848,1705281047936,-500.0,0.00028219,2]
[311650849,1705281047945,-500.0,0.00028219,2]
[311650850,1705281047954,-1274.74,0.00028219,2]
[311650851,1705281047963,-961.69,0.00028219,2]
[311650852,1705281047973,-500.0,0.00028219,2]
[311650853,1705281047982,-1695.42,0.00028219,2]
[311650854,1705281047991,-500.0,0.00028219,2]
[311650855,1705281048001,-1482.79,0.00028219,2]
[311650856,1705281048011,-500.0,0.00028219,2]
[311650857,1705281048021,-301.46968522,0.00028219,2]
[311650858,1705281048031,-500.0,0.00028219,2]
[311650859,1705281048040,-500.0,0.00028219,2]
[311650860,1705281048049,-6992.1,0.00028219,2]
[311650861,1705281048058,-500.0,0.00028219,2]
[311650862,1705281048067,-8044.07,0.00028219,2]
[311650863,1705281048076,-2794.15,0.00028219,2]
[311650864,1705281048086,-500.0,0.00028219,2]
[311650865,1705281048095,-500.0,0.00028219,2]
[311650866,1705281048105,-783.67,0.00028219,2]
[311650867,1705281048114,-500.0,0.00028219,2]
[311650868,1705281048123,-500.0,0.00028219,2]
[311650869,1705281048132,-4514.24,0.00028219,2]
[311650870,1705281048142,-868.05,0.00028219,2]
[311650871,1705281048151,-3852.53,0.00028219,2]
[311650872,1705281048160,-500.0,0.00028219,2]
[311650873,1705281048169,-329.27294652,0.00028219,2]
[311650874,1705281048180,-500.0,0.00028219,2]
[311650875,1705281048189,-500.0,0.00028219,2]
[311650876,1705281048200,-24408.73,0.00028219,2]
[311650877,1705281048209,-15055.16,0.00028219,2]
[311650878,1705281048218,-500.0,0.00028219,2]
[311650879,1705281048227,-500.0,0.00028219,2]
[311650880,1705281048236,-500.0,0.00028219,2]
[311650881,1705281048245,-219.64533435,0.00028219,2]
[311650882,1705281048254,-500.0,0.00028219,2]
[311650883,1705281048263,-500.0,0.00028219,2]
[311650884,1705281048273,-500.0,0.00028219,2]
[311650885,1705281048282,-500.0,0.00028219,2]
[311650886,1705281048292,-500.0,0.00028219,2]
[311650887,1705281048301,-500.0,0.00028219,2]
[311650888,1705281048311,-1871.2,0.00028219,2]
[311650889,1705281048321,-500.0,0.00028219,2]
[311650890,1705281048331,-719.5,0.00028219,2]
[311650891,1705281048341,-502.24841496,0.00028219,2]
[311650892,1705281048352,-500.0,0.00028219,2]
[311650893,1705281048362,-6493.17,0.00028219,2]
[311650894,1705281048373,-500.0,0.00028219,2]
[311650895,1705281048382,-153.0,0.00028219,2]
[311650896,1705281048391,-153.0,0.00028219,2]
[311650897,1705281048400,-153.0,0.00028219,2]
[311650898,1705281048410,-153.0,0.00028219,2]
[311650899,1705281048418,-235.0253398,0.00028219,2]
[311650900,1705281048427,-655.22,0.00028492,2]
[311650901,1705281048438,-655.22,0.00028492,2]
[311650902,1705281048448,-342.56294542,0.00028493,2]
[311650903,1705281048735,-500.0,0.00027397,2]
[311650904,1705281048746,-500.0,0.00027671,2]
[311650905,1705281048755,-500.0,0.00027945,2]
[311650906,1705281048765,-500.0,0.00028219,2]
[311650907,1705281048774,-226.01789658,0.00028493,2]
[311650908,1705281048784,-531.62495286,0.00028493,2]
[311650909,1705281048795,-36.95588914,0.00028493,2]
[311650910,1705281048805,-151.0,0.00028493,2]
[311650911,1705281048814,-151.0,0.00028493,2]
[311650912,1705281048823,-2430.37307,0.00028493,2]
[311650913,1705281048832,-2430.37307,0.00028493,2]
[311650914,1705281048842,-151.0,0.00028493,2]
[311650915,1705281048852,-500.0,0.00028493,2]
[311650916,1705281048861,-732.09,0.00028493,2]
[311650917,1705281048871,-505.32,0.00028493,2]
[311650918,1705281048880,-500.0,0.00028493,2]
[311650919,1705281048889,-532.87,0.00028493,2]
[311650920,1705281048898,-500.0,0.00028493,2]
[311650921,1705281048907,-500.0,0.00028493,2]
[311650922,1705281048917,-500.0,0.00028493,2]
[311650923,1705281048926,-500.0,0.00028493,2]
[311650924,1705281048937,-500.0,0.00028493,2]
[311650925,1705281048947,-1158.57,0.00028493,2]
[311650926,1705281048956,-500.0,0.00028493,2]
[311650927,1705281048965,-500.0,0.00028493,2]
[311650928,1705281048975,-1358.21,0.00028493,2]
[311650929,1705281048985,-266.20845407,0.00028493,2]
[311650930,1705281048994,-500.0,0.00028493,2]
[311650931,1705281049003,-1479.23704199,0.00028493,2]
[311650932,1705281049015,-127.34295801,0.00028493,2]
[311650933,1705281049025,-500.0,0.00028493,2]
[311650934,1705281049034,-626.85,0.00028493,2]
[311650935,1705281049044,-500.0,0.00028493,2]
[311650936,1705281049053,-972.6,0.00028493,2]
[311650937,1705281049127,-500.0,0.00028493,2]
[311650938,1705281049137,-500.0,0.00028493,2]
[311650939,1705281049146,-500.0,0.00028493,2]
[311650940,1705281049156,-500.0,0.00028493,2]
[311650941,1705281049165,-807.89,0.00028493,2]
[311650942,1705281049174,-1139.15,0.00028493,2]
[311650943,1705281049183,-500.0,0.00028493,2]
[311650944,1705281049195,-505.11,0.00028493,2]
[311650945,1705281049205,-500.0,0.00028493,2]
[311650946,1705281049214,-500.0,0.00028493,2]
[311650947,1705281049224,-681.17,0.00028493,2]
[311650948,1705281049233,-500.0,0.00028493,2]
[311650949,1705281049242,-500.0,0.00028493,2]
[311650950,1705281049251,-500.0,0.00028493,2]
[311650951,1705281049260,-792.25,0.00028493,2]
[311650952,1705281049270,-122.05094269,0.00028493,2]
[311650953,1705281049281,-377.94905731,0.00028493,2]
[311650954,1705281049291,-500.0,0.00028493,2]
[311650955,1705281049300,-683.68,0.00028493,2]
[311650956,1705281049308,-1205.42,0.00028493,2]
[311650957,1705281049317,-500.0,0.00028493,2]
[311650958,1705281049326,-500.0,0.00028493,2]
[311650959,1705281049335,-163.21279393,0.00028493,2]
[311650960,1705281049463,-263.20344308,0.00027397,2]
[311650961,1705281049474,-236.79655692,0.00027397,2]
[311650962,1705281049484,-336.78720607,0.00028493,2]
[311650963,1705281049495,-416.6322573,0.00028493,2]
[311650964,1705281049505,-109.29367957,0.00028493,2]
[311650965,1705281049618,-166.62835578,0.00027396,2]
[311650966,1705281049629,-360.30171958,0.00027396,2]
[311650967,1705281049638,-266.50416193,0.00027396,2]
[311650968,1705281049647,-500.0,0.00027397,2]
[311650969,1705281049657,-42.08068923,0.00028493,2]
[311650970,1705281049666,-359.68166785,0.00028493,2]
[311650971,1705281049676,-181.602436,0.00028493,2]
[311650972,1705281049685,-500.0,0.00028493,2]
[311650973,1705281049695,-500.0,0.00028493,2]
[311650974,1705281049704,-643.12,0.00028493,2]
[311650975,1705281049713,-2876.52,0.00028493,2]
[311650976,1705281049723,-2746.06,0.00028493,2]
[311650977,1705281049732,-720.48,0.00028493,2]
[311650978,1705281049741,-1305.35,0.00028493,2]
[311650979,1705281049750,-500.0,0.00028493,2]
[311650980,1705281049760,-998.27,0.00028493,2]
[311650981,1705281049769,-500.0,0.00028493,2]
[311650982,1705281049778,-500.0,0.00028493,2]
[311650983,1705281049787,-1274.74,0.00028493,2]
[311650984,1705281049798,-961.69,0.00028493,2]
[311650985,1705281049807,-1695.42,0.00028493,2]
[311650986,1705281049817,-500.0,0.00028493,2]
[311650987,1705281049826,-1482.79,0.00028493,2]
[311650988,1705281049835,-500.0,0.00028493,2]
[311650989,1705281049844,-6992.1,0.00028493,2]
[311650990,1705281049853,-8044.07,0.00028493,2]
[311650991,1705281049863,-2794.15,0.00028493,2]
[311650992,1705281049872,-500.0,0.00028493,2]
[311650993,1705281049881,-500.0,0.00028493,2]
[311650994,1705281049890,-783.67,0.00028493,2]
[311650995,1705281049898,-357.82551127,0.00028493,2]
[311650996,1705281049907,-500.0,0.00028493,2]
[311650997,1705281049917,-4514.24,0.00028493,2]
[311650998,1705281049927,-868.05,0.00028493,2]
[311650999,1705281049938,-3852.53,0.00028493,2]
[311651000,1705281049947,-500.0,0.00028493,2]
[311651001,1705281049957,-500.0,0.00028493,2]
[311651002,1705281049966,-24408.73,0.00028493,2]
[311651003,1705281049975,-15055.16,0.00028493,2]
[311651004,1705281049985,-500.0,0.00028493,2]
[311651005,1705281049995,-500.0,0.00028493,2]
[311651006,1705281050004,-500.0,0.00028493,2]
[311651007,1705281050015,-500.0,0.00028493,2]
[311651008,1705281050024,-500.0,0.00028493,2]
[311651009,1705281050033,-500.0,0.00028493,2]
[311651010,1705281050041,-500.0,0.00028493,2]
[311651011,1705281050051,-1871.2,0.00028493,2]
[311651012,1705281050060,-719.5,0.00028493,2]
[311651013,1705281050069,-360.84061127,0.00028493,2]
[311651014,1705281050078,-6493.17,0.00028493,2]
[311651015,1705281050087,-500.0,0.00028493,2]
[311651016,1705281050096,-153.0,0.00028493,2]
[311651017,1705281050105,-655.22,0.00028499,2]
[311651018,1705281050114,-2000.0,0.000287,2]
[311651019,1705281050124,-2000.0,0.0002871,2]
[311651020,1705281050133,-2000.0,0.0002872,2]
[311651021,1705281050143,-2000.0,0.0002873,2]
[311651022,1705281050153,-2000.0,0.0002874,2]
[311651023,1705281050164,-312.36705392,0.00028749,2]
[311651024,1705281050174,-2000.0,0.0002875,2]
[311651025,1705281050183,-2000.0,0.0002876,2]
[311651026,1705281050196,-848.51221584,0.00028765,2]
[311651027,1705281050206,-655.22,0.00028766,2]
[311651028,1705281050215,-655.22,0.00028766,2]
[311651029,1705281050225,-655.22,0.00028766,2]
[311651030,1705281050234,-655.22,0.00028766,2]
[311651031,1705281050243,-655.22,0.00028766,2]
[311651032,1705281050253,-655.22,0.00028766,2]
[311651033,1705281050262,-655.22,0.00028766,2]
[311651034,1705281050273,-655.41610238,0.00028766,2]
[311651035,1705281050283,-480.14482621,0.00028767,2]
[311651036,1705281050292,-500.0,0.00028767,2]
[311651037,1705281050302,-732.09,0.00028767,2]
[311651038,1705281050313,-505.32,0.00028767,2]
[311651039,1705281050323,-500.0,0.00028767,2]
[311651040,1705281050332,-532.87,0.00028767,2]